[Event "*** Titled Tuesday 3|2 Blitz"]
[Site "Chess.com"]
[Date "2017.03.07"]
[Round "5"]
[White "NTBT_DHS"]
[Black "TheNextLevelFan"]
[Result "0-1"]
[WhiteElo "2545"]
[BlackElo "2380"]
[TimeControl "180+2"]
[EndTime "14:08:47 PST"]
[Termination "TheNextLevelFan won on time"]

1. d4 {[%clk 0:02:57.8]} 1... Nf6 {[%clk 0:03:00.5]} 2. c4 {[%clk 0:02:59.3]}
2... e6 {[%clk 0:03:01.3]} 3. g3 {[%clk 0:02:58]} 3... d5 {[%clk 0:03:02.7]} 4.
Nf3 {[%clk 0:02:58.8]} 4... Be7 {[%clk 0:03:03.5]} 5. Bg2 {[%clk 0:03:00.4]}
5... O-O {[%clk 0:03:04.7]} 6. O-O {[%clk 0:03:02.1]} 6... dxc4 {[%clk
0:03:03.3]} 7. Qc2 {[%clk 0:03:03.4]} 7... a6 {[%clk 0:03:03.9]} 8. Qxc4 {[%clk
0:03:04.6]} 8... b5 {[%clk 0:03:05]} 9. Qc2 {[%clk 0:03:06.3]} 9... Bb7 {[%clk
0:03:06.7]} 10. Bd2 {[%clk 0:03:07.6]} 10... Be4 {[%clk 0:03:07.2]} 11. Qc1
{[%clk 0:03:09]} 11... Nbd7 {[%clk 0:03:03.9]} 12. Ba5 {[%clk 0:03:09.2]} 12...
Ra7 {[%clk 0:03:04.6]} 13. Nbd2 {[%clk 0:03:01.9]} 13... Bd5 {[%clk 0:03:02.9]}
14. Ne1 {[%clk 0:01:44.9]} 14... Bxg2 {[%clk 0:02:58.2]} 15. Nxg2 {[%clk
0:01:44.9]} 15... Qa8 {[%clk 0:02:57.3]} 16. Nb3 {[%clk 0:01:42.1]} 16... Ne4
{[%clk 0:02:05]} 17. f3 {[%clk 0:01:27.4]} 17... Nd6 {[%clk 0:02:05.2]} 18. Ne3
{[%clk 0:01:23.6]} 18... Bg5 {[%clk 0:01:52.5]} 19. Bd2 {[%clk 0:01:23.7]} 19...
a5 {[%clk 0:01:47]} 20. a4 {[%clk 0:01:23.9]} 20... Rb8 {[%clk 0:01:29]} 21. Nc5
{[%clk 0:01:05.7]} 21... Nxc5 {[%clk 0:01:18.9]} 22. dxc5 {[%clk 0:01:02.9]}
22... Bxe3+ {[%clk 0:01:20]} 23. Bxe3 {[%clk 0:01:01]} 23... Nc4 {[%clk
0:01:21.9]} 24. Bf2 {[%clk 0:00:57]} 24... Qd5 {[%clk 0:01:17.2]} 25. Rd1 {[%clk
0:00:48.6]} 25... Qc6 {[%clk 0:01:12.6]} 26. b3 {[%clk 0:00:44.6]} 26... Ne5
{[%clk 0:01:13]} 27. axb5 {[%clk 0:00:35.9]} 27... Qxb5 {[%clk 0:01:11.7]} 28.
Qc3 {[%clk 0:00:22.6]} 28... Nc6 {[%clk 0:01:11.6]} 29. Ra4 {[%clk 0:00:21]}
29... Qxb3 {[%clk 0:01:11.4]} 30. Qa1 {[%clk 0:00:22.3]} 30... Rab7 {[%clk
0:01:02.8]} 31. Rg4 {[%clk 0:00:19.1]} 31... Qxd1+ {[%clk 0:01:02]} 32. Qxd1
{[%clk 0:00:19.3]} 32... Rb1 {[%clk 0:01:03.9]} 33. Qxb1 {[%clk 0:00:19.3]}
33... Rxb1+ {[%clk 0:01:04.8]} 34. Kg2 {[%clk 0:00:21.2]} 34... Rb4 {[%clk
0:01:03.7]} 35. Rg5 {[%clk 0:00:21]} 35... a4 {[%clk 0:01:00.9]} 36. Be1 {[%clk
0:00:16.6]} 36... Rc4 {[%clk 0:00:57.3]} 37. f4 {[%clk 0:00:15.5]} 37... a3
{[%clk 0:00:57.2]} 38. f5 {[%clk 0:00:17]} 38... f6 {[%clk 0:00:55.9]} 39. Rh5
{[%clk 0:00:16.4]} 39... a2 {[%clk 0:00:56.5]} 0-1

[Event "*** Titled Tuesday 3|2 Blitz"]
[Site "Chess.com"]
[Date "2017.03.07"]
[Round "5"]
[White "quesfr"]
[Black "Schoenbrunn"]
[Result "0-1"]
[WhiteElo "2138"]
[BlackElo "1866"]
[TimeControl "180+2"]
[EndTime "14:08:47 PST"]
[Termination "Schoenbrunn won by checkmate"]

1. e4 {[%clk 0:03:02]} 1... e6 {[%clk 0:02:59]} 2. d4 {[%clk 0:03:01]} 2... d5
{[%clk 0:02:58.7]} 3. Nd2 {[%clk 0:03:02.4]} 3... c5 {[%clk 0:02:58.1]} 4. exd5
{[%clk 0:03:01.8]} 4... Qxd5 {[%clk 0:02:57.2]} 5. Ngf3 {[%clk 0:03:01.7]} 5...
cxd4 {[%clk 0:02:56.3]} 6. Bc4 {[%clk 0:02:59.9]} 6... Qd6 {[%clk 0:02:53]} 7.
O-O {[%clk 0:02:57.1]} 7... Nf6 {[%clk 0:02:49]} 8. Nb3 {[%clk 0:02:53.2]} 8...
Nc6 {[%clk 0:02:48.9]} 9. Nbxd4 {[%clk 0:02:52.7]} 9... Nxd4 {[%clk 0:02:49.1]}
10. Nxd4 {[%clk 0:02:52]} 10... a6 {[%clk 0:02:40.1]} 11. Re1 {[%clk 0:02:46.8]}
11... Qc7 {[%clk 0:02:38.8]} 12. Qe2 {[%clk 0:02:36.8]} 12... h6 {[%clk
0:02:37.6]} 13. Nf5 {[%clk 0:02:19.5]} 13... g6 {[%clk 0:00:49.8]} 14. Nd4
{[%clk 0:02:02.8]} 14... Bg7 {[%clk 0:00:41.9]} 15. Nxe6 {[%clk 0:01:28.6]}
15... fxe6 {[%clk 0:00:40]} 16. Bxe6 {[%clk 0:01:28.1]} 16... Bxe6 {[%clk
0:00:34.6]} 17. Qxe6+ {[%clk 0:01:26.9]} 17... Kf8 {[%clk 0:00:35.4]} 18. b3
{[%clk 0:00:57.3]} 18... Qf7 {[%clk 0:00:32.8]} 19. Ba3+ {[%clk 0:00:50.6]}
19... Kg8 {[%clk 0:00:33.5]} 20. Qb6 {[%clk 0:00:47.2]} 20... Nd5 {[%clk
0:00:26.3]} 21. Qd6 {[%clk 0:00:38.3]} 21... Bxa1 {[%clk 0:00:24.5]} 22. Rxa1
{[%clk 0:00:39.2]} 22... Kh7 {[%clk 0:00:21.4]} 23. Rd1 {[%clk 0:00:39.6]} 23...
Rhf8 {[%clk 0:00:18.4]} 24. Qg3 {[%clk 0:00:37.7]} 24... Rad8 {[%clk 0:00:18.1]}
25. h4 {[%clk 0:00:36.3]} 25... Nf4 {[%clk 0:00:17.4]} 26. Re1 {[%clk
0:00:36.2]} 26... Rd1 {[%clk 0:00:14.1]} 27. f3 {[%clk 0:00:21.4]} 27... Ne2+
{[%clk 0:00:11.5]} 28. Kh2 {[%clk 0:00:22.3]} 28... Nxg3 {[%clk 0:00:11.9]} 29.
Rxd1 {[%clk 0:00:23.9]} 29... Qf4 {[%clk 0:00:11.4]} 30. Kg1 {[%clk 0:00:24.6]}
30... Qe3+ {[%clk 0:00:10.3]} 31. Kh2 {[%clk 0:00:25]} 31... Ne2 {[%clk
0:00:10.6]} 32. Bb2 {[%clk 0:00:24.5]} 32... Qf4+ {[%clk 0:00:10.2]} 33. Kh1
{[%clk 0:00:24.8]} 33... Qxh4# {[%clk 0:00:10.9]} 0-1

[Event "*** Titled Tuesday 3|2 Blitz"]
[Site "Chess.com"]
[Date "2017.03.07"]
[Round "5"]
[White "Astaneh"]
[Black "Jadro9"]
[Result "1-0"]
[WhiteElo "2533"]
[BlackElo "2400"]
[TimeControl "180+2"]
[EndTime "14:09:07 PST"]
[Termination "Astaneh won by resignation"]

1. d4 {[%clk 0:03:02]} 1... d5 {[%clk 0:02:59.7]} 2. c4 {[%clk 0:03:02.7]} 2...
e6 {[%clk 0:03:00.7]} 3. Nc3 {[%clk 0:03:01.4]} 3... Be7 {[%clk 0:03:01.6]} 4.
Nf3 {[%clk 0:03:00.4]} 4... Nf6 {[%clk 0:03:02.3]} 5. Bf4 {[%clk 0:03:01.5]}
5... O-O {[%clk 0:03:02.9]} 6. e3 {[%clk 0:03:02.1]} 6... c5 {[%clk 0:03:04]} 7.
dxc5 {[%clk 0:02:58.1]} 7... Bxc5 {[%clk 0:03:04.7]} 8. cxd5 {[%clk 0:02:58.2]}
8... exd5 {[%clk 0:03:05]} 9. Rc1 {[%clk 0:02:59.7]} 9... Bb6 {[%clk 0:02:59.5]}
10. Be2 {[%clk 0:02:38.5]} 10... Nc6 {[%clk 0:03:00]} 11. O-O {[%clk 0:02:35.5]}
11... Be6 {[%clk 0:02:53]} 12. Nb5 {[%clk 0:02:30.5]} 12... Ne4 {[%clk 0:02:54]}
13. Nfd4 {[%clk 0:02:25.7]} 13... Qd7 {[%clk 0:02:41.1]} 14. Bf3 {[%clk
0:02:17.6]} 14... Rfd8 {[%clk 0:02:07.4]} 15. Nxe6 {[%clk 0:02:10.2]} 15... Qxe6
{[%clk 0:02:07.2]} 16. Nc7 {[%clk 0:01:44.7]} 16... Bxc7 {[%clk 0:02:05.6]} 17.
Bxc7 {[%clk 0:01:46.6]} 17... Rd7 {[%clk 0:02:07.2]} 18. Bf4 {[%clk 0:01:45.8]}
18... d4 {[%clk 0:01:52.6]} 19. Qa4 {[%clk 0:01:06]} 19... Re8 {[%clk
0:01:04.1]} 20. exd4 {[%clk 0:00:44.9]} 20... Rxd4 {[%clk 0:01:00.8]} 21. Qc2
{[%clk 0:00:23.1]} 21... Nxf2 {[%clk 0:00:41.7]} 22. Rce1 {[%clk 0:00:19.5]}
22... Ne4 {[%clk 0:00:30.3]} 23. Be3 {[%clk 0:00:12.4]} 23... Rc4 {[%clk
0:00:29.3]} 24. Qb3 {[%clk 0:00:12.7]} 24... Rb4 {[%clk 0:00:27.2]} 25. Qa3
{[%clk 0:00:11.3]} 25... f5 {[%clk 0:00:23.7]} 26. Bc5 {[%clk 0:00:09.4]} 26...
Rc4 {[%clk 0:00:21.4]} 27. Bf2 {[%clk 0:00:10.2]} 27... Rc2 {[%clk 0:00:22.2]}
28. Be3 {[%clk 0:00:08.2]} 28... h6 {[%clk 0:00:21.4]} 29. h3 {[%clk 0:00:08.8]}
29... Qe5 {[%clk 0:00:21.5]} 30. Bc1 {[%clk 0:00:08.7]} 30... Qc5+ {[%clk
0:00:21.2]} 31. Qxc5 {[%clk 0:00:07.8]} 31... Rxc5 {[%clk 0:00:22.9]} 32. Be3
{[%clk 0:00:09.4]} 32... Rc2 {[%clk 0:00:23.8]} 33. Bc1 {[%clk 0:00:09.2]} 33...
Nd4 {[%clk 0:00:24.9]} 34. Bh5 {[%clk 0:00:08.3]} 34... Rec8 {[%clk 0:00:25.5]}
35. Be3 {[%clk 0:00:09.8]} 35... Ne2+ {[%clk 0:00:26.3]} 36. Rxe2 {[%clk
0:00:10.6]} 36... Rxe2 {[%clk 0:00:25.4]} 37. Bxe2 {[%clk 0:00:12.5]} 37... Ng3
{[%clk 0:00:26.8]} 38. Re1 {[%clk 0:00:13.4]} 38... Re8 {[%clk 0:00:28.1]} 39.
Bd3 {[%clk 0:00:14]} 1-0

[Event "*** Titled Tuesday 3|2 Blitz"]
[Site "Chess.com"]
[Date "2017.03.07"]
[Round "5"]
[White "SergeiAza"]
[Black "LawrenceTrent"]
[Result "1-0"]
[WhiteElo "2599"]
[BlackElo "2390"]
[TimeControl "180+2"]
[EndTime "14:09:08 PST"]
[Termination "SergeiAza won by resignation"]

1. e4 {[%clk 0:03:02]} 1... e5 {[%clk 0:03:00.7]} 2. Nf3 {[%clk 0:03:03]} 2...
Nc6 {[%clk 0:03:02.1]} 3. Bb5 {[%clk 0:03:03.9]} 3... a6 {[%clk 0:03:03.4]} 4.
Ba4 {[%clk 0:03:05.1]} 4... Nf6 {[%clk 0:03:04.7]} 5. O-O {[%clk 0:03:06.1]}
5... Bc5 {[%clk 0:03:03]} 6. Re1 {[%clk 0:03:05.9]} 6... b5 {[%clk 0:02:46.3]}
7. Bb3 {[%clk 0:03:06.8]} 7... d6 {[%clk 0:02:37]} 8. a4 {[%clk 0:03:03.8]} 8...
Rb8 {[%clk 0:02:31.3]} 9. c3 {[%clk 0:03:02.7]} 9... O-O {[%clk 0:02:30.7]} 10.
h3 {[%clk 0:02:48.4]} 10... h6 {[%clk 0:02:20.2]} 11. d4 {[%clk 0:02:48.8]}
11... Bb6 {[%clk 0:02:21.2]} 12. Be3 {[%clk 0:02:50.2]} 12... Bd7 {[%clk
0:02:05.1]} 13. Nbd2 {[%clk 0:02:47.5]} 13... Re8 {[%clk 0:02:05.3]} 14. d5
{[%clk 0:02:23.4]} 14... Ne7 {[%clk 0:02:03.7]} 15. Bxb6 {[%clk 0:02:24]} 15...
Rxb6 {[%clk 0:02:04.7]} 16. a5 {[%clk 0:02:23.4]} 16... Rb8 {[%clk 0:02:05.4]}
17. c4 {[%clk 0:02:24.7]} 17... Ng6 {[%clk 0:01:59.1]} 18. Qc2 {[%clk
0:02:19.5]} 18... Nf4 {[%clk 0:01:55.7]} 19. c5 {[%clk 0:02:16.7]} 19... dxc5
{[%clk 0:01:55.9]} 20. Qxc5 {[%clk 0:02:11.4]} 20... Nd3 {[%clk 0:01:55.3]} 21.
Qc3 {[%clk 0:02:05.9]} 21... Nxe1 {[%clk 0:01:55.8]} 22. Rxe1 {[%clk 0:02:06.8]}
22... b4 {[%clk 0:01:49.6]} 23. Qe3 {[%clk 0:02:00]} 23... Bb5 {[%clk
0:01:41.2]} 24. Rc1 {[%clk 0:01:58.3]} 24... Re7 {[%clk 0:01:28.3]} 25. Nc4
{[%clk 0:01:41.6]} 25... Nd7 {[%clk 0:01:07.9]} 26. d6 {[%clk 0:01:39.2]} 26...
cxd6 {[%clk 0:01:00.4]} 27. Nxd6 {[%clk 0:01:40.7]} 27... Nf6 {[%clk 0:00:56.7]}
28. Nxf7 {[%clk 0:01:35.3]} 28... Rxf7 {[%clk 0:00:52.1]} 29. Nxe5 {[%clk
0:01:36.8]} 29... Be8 {[%clk 0:00:53.3]} 30. Bxf7+ {[%clk 0:01:37]} 30... Bxf7
{[%clk 0:00:53.8]} 31. Nc6 {[%clk 0:01:38.6]} 31... Qe8 {[%clk 0:00:50.5]} 32.
Nxb8 {[%clk 0:01:37.4]} 32... Qxb8 {[%clk 0:00:52.4]} 33. e5 {[%clk 0:01:24.9]}
33... Nd5 {[%clk 0:00:53.5]} 34. Qe2 {[%clk 0:01:17.1]} 34... Qe8 {[%clk
0:00:34.2]} 35. Re1 {[%clk 0:00:55.6]} 35... Be6 {[%clk 0:00:35.4]} 36. Qxa6
{[%clk 0:00:53.6]} 36... Qg6 {[%clk 0:00:36.7]} 37. Qc4 {[%clk 0:00:34.5]} 37...
Ne3 {[%clk 0:00:33.3]} 38. Qc6 {[%clk 0:00:34.7]} 38... Nc2 {[%clk 0:00:20.1]}
39. Rd1 {[%clk 0:00:30]} 39... Qf5 {[%clk 0:00:17.2]} 40. a6 {[%clk 0:00:27.3]}
1-0

[Event "*** Titled Tuesday 3|2 Blitz"]
[Site "Chess.com"]
[Date "2017.03.07"]
[Round "5"]
[White "IMcoach"]
[Black "olgerts_indricans"]
[Result "1-0"]
[WhiteElo "2314"]
[BlackElo "2178"]
[TimeControl "180+2"]
[EndTime "14:09:16 PST"]
[Termination "IMcoach won by resignation"]

1. e4 {[%clk 0:03:01.9]} 1... c5 {[%clk 0:03:00.1]} 2. Nc3 {[%clk 0:03:02.1]}
2... e6 {[%clk 0:03:00.1]} 3. g3 {[%clk 0:03:00.5]} 3... d5 {[%clk 0:03:00.5]}
4. exd5 {[%clk 0:03:00.7]} 4... exd5 {[%clk 0:03:00.8]} 5. Bg2 {[%clk
0:03:02.6]} 5... d4 {[%clk 0:03:01.1]} 6. Nd5 {[%clk 0:02:53.3]} 6... Nc6 {[%clk
0:02:56.9]} 7. d3 {[%clk 0:02:53.2]} 7... Nf6 {[%clk 0:02:54.8]} 8. Bg5 {[%clk
0:02:48.2]} 8... Be6 {[%clk 0:02:49.6]} 9. Bxf6 {[%clk 0:02:27.8]} 9... gxf6
{[%clk 0:02:48.8]} 10. Nf4 {[%clk 0:02:29]} 10... Bd6 {[%clk 0:02:39.2]} 11.
Nxe6 {[%clk 0:02:10.7]} 11... Qe7 {[%clk 0:02:36.6]} 12. Ne2 {[%clk 0:02:09]}
12... fxe6 {[%clk 0:02:34.7]} 13. O-O {[%clk 0:02:04.7]} 13... O-O-O {[%clk
0:02:33.2]} 14. c3 {[%clk 0:02:03.9]} 14... h5 {[%clk 0:02:18.8]} 15. Qa4 {[%clk
0:01:59.5]} 15... Ne5 {[%clk 0:02:11.5]} 16. cxd4 {[%clk 0:01:56.5]} 16... Nxd3
{[%clk 0:02:10.7]} 17. Rfd1 {[%clk 0:01:46.3]} 17... Nxb2 {[%clk 0:02:09.6]} 18.
Qxa7 {[%clk 0:01:46.4]} 18... Nxd1 {[%clk 0:02:09.5]} 19. dxc5 {[%clk
0:01:39.7]} 19... Bb8 {[%clk 0:02:05.2]} 20. Qa4 {[%clk 0:00:54.9]} 20... Nb2
{[%clk 0:01:57.8]} 21. Qb3 {[%clk 0:00:50]} 21... Nd3 {[%clk 0:01:56.6]} 22. Rb1
{[%clk 0:00:50.6]} 22... Rh7 {[%clk 0:01:31.4]} 23. c6 {[%clk 0:00:47.2]} 23...
Nc5 {[%clk 0:01:26.6]} 24. cxb7+ {[%clk 0:00:42.3]} 24... Nxb7 {[%clk
0:01:15.1]} 25. Rc1+ {[%clk 0:00:41]} 25... Nc5 {[%clk 0:01:14.9]} 26. Qb5
{[%clk 0:00:27.2]} 26... Bd6 {[%clk 0:01:05.4]} 27. Qa6+ {[%clk 0:00:27.8]}
27... Kb8 {[%clk 0:00:57.4]} 28. Rb1+ {[%clk 0:00:25.7]} 28... Nb7 {[%clk
0:00:52]} 29. Nd4 {[%clk 0:00:26.3]} 29... Rc8 {[%clk 0:00:49]} 30. Nc6+ {[%clk
0:00:20.5]} 30... Rxc6 {[%clk 0:00:49]} 31. Bxc6 {[%clk 0:00:22.4]} 31... Be5
{[%clk 0:00:47.7]} 32. Bxb7 {[%clk 0:00:17.7]} 32... Qxb7 {[%clk 0:00:47.6]} 33.
Rxb7+ {[%clk 0:00:18.3]} 33... Rxb7 {[%clk 0:00:49.1]} 34. Qxe6 {[%clk
0:00:19.1]} 34... Ra7 {[%clk 0:00:45.7]} 35. Kg2 {[%clk 0:00:17.6]} 35... Kb7
{[%clk 0:00:43.1]} 36. f4 {[%clk 0:00:18.2]} 36... Bc7 {[%clk 0:00:40]} 37. Qb3+
{[%clk 0:00:16.8]} 37... Kc8 {[%clk 0:00:40]} 38. a4 {[%clk 0:00:17.9]} 38...
Ra5 {[%clk 0:00:39.3]} 39. Qe6+ {[%clk 0:00:18.6]} 39... Kb8 {[%clk 0:00:39]}
40. Qxf6 {[%clk 0:00:19.6]} 40... Rxa4 {[%clk 0:00:38.6]} 41. Qf8+ {[%clk
0:00:20.4]} 41... Kb7 {[%clk 0:00:37.9]} 42. Qf7 {[%clk 0:00:21.6]} 42... h4
{[%clk 0:00:36.1]} 43. Qb3+ {[%clk 0:00:21.1]} 1-0

[Event "*** Titled Tuesday 3|2 Blitz"]
[Site "Chess.com"]
[Date "2017.03.07"]
[Round "5"]
[White "Elshan1985"]
[Black "SantoBlue"]
[Result "0-1"]
[WhiteElo "2488"]
[BlackElo "2426"]
[TimeControl "180+2"]
[EndTime "14:09:19 PST"]
[Termination "SantoBlue won by resignation"]

1. d4 {[%clk 0:03:02]} 1... Nf6 {[%clk 0:02:59.9]} 2. c4 {[%clk 0:03:01.5]} 2...
e6 {[%clk 0:03:00.8]} 3. Nf3 {[%clk 0:03:03.1]} 3... b6 {[%clk 0:03:01.8]} 4. g3
{[%clk 0:03:04.1]} 4... Bb7 {[%clk 0:03:03.3]} 5. Bg2 {[%clk 0:03:05.5]} 5...
Be7 {[%clk 0:03:05.2]} 6. O-O {[%clk 0:03:06.6]} 6... O-O {[%clk 0:03:06.8]} 7.
Re1 {[%clk 0:03:07.7]} 7... d5 {[%clk 0:03:06.9]} 8. cxd5 {[%clk 0:03:06.5]}
8... exd5 {[%clk 0:03:08.8]} 9. Bf4 {[%clk 0:03:07.2]} 9... a6 {[%clk
0:03:06.8]} 10. Nc3 {[%clk 0:03:06.9]} 10... Re8 {[%clk 0:03:05]} 11. Ne5 {[%clk
0:03:07.8]} 11... Nbd7 {[%clk 0:02:59.3]} 12. Qb3 {[%clk 0:03:04.6]} 12... Nf8
{[%clk 0:03:00.4]} 13. e4 {[%clk 0:03:03]} 13... Ne6 {[%clk 0:03:00.3]} 14. Be3
{[%clk 0:03:01.1]} 14... Nxe4 {[%clk 0:02:56.1]} 15. Bxe4 {[%clk 0:02:27.5]}
15... dxe4 {[%clk 0:02:56]} 16. d5 {[%clk 0:02:29]} 16... Nc5 {[%clk 0:02:36.5]}
17. Qc4 {[%clk 0:02:29]} 17... Bd6 {[%clk 0:02:29.5]} 18. Bxc5 {[%clk
0:02:23.1]} 18... Bxe5 {[%clk 0:02:30.8]} 19. Bd4 {[%clk 0:02:21.7]} 19... b5
{[%clk 0:02:32.2]} 20. Qb4 {[%clk 0:02:17.2]} 20... Bd6 {[%clk 0:02:22.8]} 21.
Bc5 {[%clk 0:02:18.4]} 21... f5 {[%clk 0:02:16.1]} 22. a4 {[%clk 0:02:12.7]}
22... Bxc5 {[%clk 0:01:50.6]} 23. Qxc5 {[%clk 0:02:13.7]} 23... bxa4 {[%clk
0:01:51.6]} 24. Rxa4 {[%clk 0:02:14.5]} 24... Qd6 {[%clk 0:01:50.2]} 25. Qxd6
{[%clk 0:02:15.6]} 25... cxd6 {[%clk 0:01:52.1]} 26. Rb4 {[%clk 0:02:11.9]}
26... Rab8 {[%clk 0:01:53]} 27. f3 {[%clk 0:02:12.5]} 27... Ba8 {[%clk
0:01:48.7]} 28. Rxb8 {[%clk 0:02:10.7]} 28... Rxb8 {[%clk 0:01:50.6]} 29. fxe4
{[%clk 0:02:12.1]} 29... Re8 {[%clk 0:00:50.9]} 30. Ra1 {[%clk 0:01:58]} 30...
fxe4 {[%clk 0:00:51.9]} 31. Rxa6 {[%clk 0:01:58.4]} 31... Bb7 {[%clk 0:00:53.2]}
32. Rxd6 {[%clk 0:01:55.9]} 32... Bc8 {[%clk 0:00:54.4]} 33. Nd1 {[%clk
0:01:47]} 33... Bh3 {[%clk 0:00:46]} 34. Kf2 {[%clk 0:01:39.8]} 34... Rb8 {[%clk
0:00:31.7]} 35. Ke3 {[%clk 0:01:26.7]} 35... Bg2 {[%clk 0:00:32.9]} 36. Rc6
{[%clk 0:01:08.4]} 36... Rb3+ {[%clk 0:00:29.4]} 37. Rc3 {[%clk 0:01:05.5]}
37... Rb5 {[%clk 0:00:30.4]} 38. Kd4 {[%clk 0:01:04.1]} 38... Rxd5+ {[%clk
0:00:24.5]} 39. Kxd5 {[%clk 0:01:01.3]} 39... e3+ {[%clk 0:00:25.9]} 40. Ke6
{[%clk 0:01:02.7]} 40... Bh3+ {[%clk 0:00:24.6]} 41. Ke7 {[%clk 0:01:03.3]}
41... e2 {[%clk 0:00:25.9]} 42. Ne3 {[%clk 0:00:19.8]} 42... e1=Q {[%clk
0:00:24.9]} 43. Rd3 {[%clk 0:00:21]} 43... Qb4+ {[%clk 0:00:22.1]} 44. Ke8
{[%clk 0:00:20.5]} 44... Qe4+ {[%clk 0:00:22.6]} 0-1

[Event "*** Titled Tuesday 3|2 Blitz"]
[Site "Chess.com"]
[Date "2017.03.07"]
[Round "5"]
[White "VerdeNotte"]
[Black "jcibarra"]
[Result "1/2-1/2"]
[WhiteElo "2572"]
[BlackElo "2674"]
[TimeControl "180+2"]
[EndTime "14:09:21 PST"]
[Termination "Game drawn by repetition"]

1. e4 {[%clk 0:03:02]} 1... e5 {[%clk 0:02:59.8]} 2. Nf3 {[%clk 0:03:02.7]} 2...
d6 {[%clk 0:03:00.2]} 3. d4 {[%clk 0:03:00.8]} 3... exd4 {[%clk 0:03:02.1]} 4.
Nxd4 {[%clk 0:03:01.9]} 4... Nf6 {[%clk 0:03:02.2]} 5. Nc3 {[%clk 0:03:03]} 5...
Be7 {[%clk 0:03:03.3]} 6. g3 {[%clk 0:03:04.1]} 6... O-O {[%clk 0:03:01.6]} 7.
Bg2 {[%clk 0:03:05.2]} 7... Nc6 {[%clk 0:03:02.9]} 8. Nxc6 {[%clk 0:03:03.9]}
8... bxc6 {[%clk 0:03:03.1]} 9. O-O {[%clk 0:03:05]} 9... Nd7 {[%clk 0:03:00.6]}
10. b3 {[%clk 0:03:03.1]} 10... Bf6 {[%clk 0:03:01.2]} 11. Bb2 {[%clk
0:03:03.8]} 11... Re8 {[%clk 0:03:02.5]} 12. h3 {[%clk 0:03:01]} 12... Nc5
{[%clk 0:03:03.1]} 13. Re1 {[%clk 0:02:56.1]} 13... Rb8 {[%clk 0:03:02.3]} 14.
Qd2 {[%clk 0:02:51.5]} 14... a5 {[%clk 0:02:55.7]} 15. Rad1 {[%clk 0:02:47.6]}
15... h5 {[%clk 0:02:43.7]} 16. e5 {[%clk 0:02:36.8]} 16... Rxe5 {[%clk
0:02:28.3]} 17. Bxc6 {[%clk 0:01:46.2]} 17... Bxh3 {[%clk 0:02:16.4]} 18. Na4
{[%clk 0:01:04.8]} 18... Rxe1+ {[%clk 0:02:03]} 19. Rxe1 {[%clk 0:01:05.7]}
19... Nxa4 {[%clk 0:01:34.9]} 20. Re8+ {[%clk 0:01:03]} 20... Qxe8 {[%clk
0:01:34.5]} 21. Bxe8 {[%clk 0:01:04.9]} 21... Nxb2 {[%clk 0:01:30.6]} 22. Bc6
{[%clk 0:01:01.4]} 22... a4 {[%clk 0:01:17.1]} 23. Bd5 {[%clk 0:00:44.4]} 23...
Rb5 {[%clk 0:00:50.8]} 24. b4 {[%clk 0:00:22.7]} 24... c5 {[%clk 0:00:31.8]} 25.
Qe2 {[%clk 0:00:17.8]} 25... Bd7 {[%clk 0:00:17.5]} 26. Qxh5 {[%clk 0:00:16.9]}
26... Be8 {[%clk 0:00:18.9]} 27. Qe2 {[%clk 0:00:17]} 27... Kf8 {[%clk 0:00:19]}
28. bxc5 {[%clk 0:00:14.3]} 28... Rxc5 {[%clk 0:00:20.5]} 29. c4 {[%clk
0:00:15.1]} 29... Rc7 {[%clk 0:00:19.8]} 30. Qh5 {[%clk 0:00:12.5]} 30... g6
{[%clk 0:00:18.5]} 31. Qh6+ {[%clk 0:00:12]} 31... Bg7 {[%clk 0:00:19]} 32. Qf4
{[%clk 0:00:12.9]} 32... Be5 {[%clk 0:00:19.3]} 33. Qh6+ {[%clk 0:00:14.2]}
33... Bg7 {[%clk 0:00:20.4]} 34. Qf4 {[%clk 0:00:15.3]} 34... Ke7 {[%clk
0:00:16.9]} 35. Qe3+ {[%clk 0:00:16.1]} 35... Kd8 {[%clk 0:00:17.5]} 36. Qg5+
{[%clk 0:00:16.5]} 36... Re7 {[%clk 0:00:16.7]} 37. Qd2 {[%clk 0:00:17.6]} 37...
Rc7 {[%clk 0:00:15.2]} 38. Qg5+ {[%clk 0:00:18.3]} 38... Kc8 {[%clk 0:00:11.1]}
39. Qe3 {[%clk 0:00:18.8]} 39... Kd8 {[%clk 0:00:08.4]} 40. Qg5+ {[%clk
0:00:19.6]} 1/2-1/2

[Event "*** Titled Tuesday 3|2 Blitz"]
[Site "Chess.com"]
[Date "2017.03.07"]
[Round "5"]
[White "amaidel"]
[Black "LuckyTiger"]
[Result "0-1"]
[WhiteElo "2442"]
[BlackElo "2493"]
[TimeControl "180+2"]
[EndTime "14:09:24 PST"]
[Termination "LuckyTiger won by resignation"]

1. e4 {[%clk 0:03:02]} 1... c5 {[%clk 0:03:00.6]} 2. Nf3 {[%clk 0:03:02.6]} 2...
d6 {[%clk 0:03:02.2]} 3. d4 {[%clk 0:03:03.5]} 3... Nf6 {[%clk 0:03:03.5]} 4.
Nc3 {[%clk 0:03:03.9]} 4... cxd4 {[%clk 0:03:05.2]} 5. Nxd4 {[%clk 0:03:05.8]}
5... a6 {[%clk 0:03:06.8]} 6. Be3 {[%clk 0:03:05.1]} 6... e5 {[%clk 0:03:06]} 7.
Nb3 {[%clk 0:03:05.6]} 7... Be6 {[%clk 0:03:07.2]} 8. f3 {[%clk 0:03:06.4]} 8...
h5 {[%clk 0:03:08.6]} 9. Qd2 {[%clk 0:03:07.1]} 9... Nbd7 {[%clk 0:03:10.1]} 10.
O-O-O {[%clk 0:03:07.7]} 10... Rc8 {[%clk 0:03:11.7]} 11. Kb1 {[%clk 0:03:07.5]}
11... Be7 {[%clk 0:03:12.9]} 12. Nd5 {[%clk 0:03:07.4]} 12... Nxd5 {[%clk
0:03:14.4]} 13. exd5 {[%clk 0:03:08.6]} 13... Bf5 {[%clk 0:03:16]} 14. Bd3
{[%clk 0:03:09.6]} 14... Bxd3 {[%clk 0:03:17.6]} 15. Qxd3 {[%clk 0:03:11.5]}
15... Bg5 {[%clk 0:03:19.2]} 16. Bf2 {[%clk 0:03:11.8]} 16... O-O {[%clk
0:03:17.9]} 17. h4 {[%clk 0:03:12.2]} 17... Bf4 {[%clk 0:03:19.4]} 18. g3 {[%clk
0:03:11.4]} 18... Bh6 {[%clk 0:03:20.6]} 19. g4 {[%clk 0:03:10.2]} 19... Bf4
{[%clk 0:03:21.8]} 20. Nd2 {[%clk 0:03:03]} 20... Bxd2 {[%clk 0:03:08]} 21. Rxd2
{[%clk 0:03:04.9]} 21... Nf6 {[%clk 0:02:35.3]} 22. Be3 {[%clk 0:02:57.7]} 22...
e4 {[%clk 0:02:10.8]} 23. fxe4 {[%clk 0:02:43.8]} 23... Nxg4 {[%clk 0:02:12.3]}
24. Bd4 {[%clk 0:02:40.3]} 24... Qe7 {[%clk 0:02:13.6]} 25. Qf3 {[%clk
0:02:33.5]} 25... Rce8 {[%clk 0:02:10.3]} 26. Re2 {[%clk 0:02:24.7]} 26... f5
{[%clk 0:02:10.2]} 27. Rhe1 {[%clk 0:01:20.6]} 27... f4 {[%clk 0:00:59.3]} 28.
a3 {[%clk 0:01:06]} 28... Qxh4 {[%clk 0:00:53.9]} 29. Rh1 {[%clk 0:01:03.3]}
29... Qg5 {[%clk 0:00:54.9]} 30. Rg2 {[%clk 0:01:00.2]} 30... Rf7 {[%clk
0:00:46.5]} 31. Rxh5 {[%clk 0:00:44]} 31... Qxh5 {[%clk 0:00:47.1]} 32. Rxg4
{[%clk 0:00:45]} 32... Qh7 {[%clk 0:00:27.8]} 33. Rg1 {[%clk 0:00:15.6]} 33...
Qxe4 {[%clk 0:00:26.2]} 34. Qc3 {[%clk 0:00:16.4]} 34... f3 {[%clk 0:00:19]} 35.
Rf1 {[%clk 0:00:02.6]} 35... Qe2 {[%clk 0:00:16.3]} 36. Rf2 {[%clk 0:00:03.1]}
36... Qe1+ {[%clk 0:00:17.5]} 37. Ka2 {[%clk 0:00:04.1]} 37... Qxc3 {[%clk
0:00:18]} 38. Bxc3 {[%clk 0:00:05.3]} 38... Re2 {[%clk 0:00:19.5]} 0-1